bitfinex-derivatives/quotes_BTCF0:USTF0_20251228
["timestamp","ask_amount","ask_price","bid_price","bid_amount"]
[1766895539645,0.02411669,87836.0,87824.0,0.057]
[1766895539950,0.02411669,87835.0,87824.0,0.057]
[1766895540136,0.02411669,87834.0,87824.0,0.057]
[1766895540335,0.0113926,87838.0,87824.0,0.057]
[1766895540547,0.02402422,87837.0,87824.0,0.057]
[1766895540849,0.02402422,87836.0,87824.0,0.057]
[1766895541046,0.0113926,87838.0,87824.0,0.057]
[1766895541241,0.02402342,87837.0,87824.0,0.057]
[1766895541446,0.02402342,87836.0,87824.0,0.057]
[1766895541647,0.0113926,87838.0,87824.0,0.057]
[1766895541948,0.0240233,87837.0,87824.0,0.057]
[1766895542149,0.0240233,87836.0,87824.0,0.057]
[1766895542351,0.0113926,87838.0,87824.0,0.057]
[1766895542552,0.02402288,87837.0,87824.0,0.057]
[1766895542851,0.02402288,87836.0,87824.0,0.057]
[1766895543149,0.0113926,87838.0,87824.0,0.057]
[1766895543451,0.02402253,87837.0,87824.0,0.057]
[1766895543651,0.02402253,87836.0,87824.0,0.057]
[1766895543847,0.057,87839.0,87824.0,0.0683942]
[1766895544043,0.02402253,87838.0,87824.0,0.0683942]
[1766895544241,0.02402253,87837.0,87824.0,0.0683942]
[1766895544442,0.02402253,87836.0,87824.0,0.0683942]
[1766895544641,0.057,87839.0,87824.0,0.0683942]
[1766895544842,0.02402221,87838.0,87826.0,0.011394]
[1766895545149,0.02402221,87837.0,87826.0,0.011394]
[1766895545357,0.02402221,87836.0,87826.0,0.011394]
[1766895545557,0.057,87839.0,87826.0,0.011394]
[1766895545748,0.02402201,87838.0,87826.0,0.011394]
[1766895545948,0.02402201,87837.0,87826.0,0.011394]
[1766895546143,0.02402201,87836.0,87826.0,0.011394]
[1766895546449,0.057,87839.0,87826.0,0.011394]
[1766895546752,0.02402189,87838.0,87826.0,0.011394]
[1766895546942,0.02402189,87837.0,87826.0,0.011394]
[1766895547142,0.02402189,87836.0,87826.0,0.011394]
[1766895547356,0.057,87839.0,87826.0,0.011394]
[1766895547550,0.0240218,87838.0,87826.0,0.011394]
[1766895547756,0.0240218,87837.0,87826.0,0.011394]
[1766895547951,0.0240218,87836.0,87826.0,0.011394]
[1766895548144,0.057,87839.0,87826.0,0.011394]
[1766895548343,0.02402174,87838.0,87826.0,0.011394]
[1766895548544,0.02402174,87837.0,87826.0,0.011394]
[1766895548745,0.02402174,87836.0,87826.0,0.011394]
[1766895548944,0.057,87839.0,87826.0,0.011394]
[1766895549149,0.02402174,87838.0,87826.0,0.011394]
[1766895549353,0.02402183,87837.0,87826.0,0.011394]
[1766895549552,0.02402183,87836.0,87826.0,0.011394]
[1766895549753,0.057,87839.0,87826.0,0.011394]
[1766895549970,0.02402175,87838.0,87826.0,0.011394]
[1766895550159,0.02402175,87837.0,87826.0,0.011394]
[1766895550346,0.057,87839.0,87826.0,0.011394]
[1766895550347,0.02402175,87836.0,87826.0,0.011394]
[1766895550547,0.057,87839.0,87826.0,0.011394]
[1766895550747,0.0240219,87838.0,87826.0,0.011394]
[1766895551047,0.0240219,87837.0,87826.0,0.011394]
[1766895551247,0.0240219,87836.0,87826.0,0.011394]
[1766895551448,0.057,87839.0,87826.0,0.011394]
[1766895551646,0.02402202,87838.0,87826.0,0.011394]
[1766895551847,0.02402202,87837.0,87826.0,0.011394]
[1766895552047,0.02402202,87836.0,87826.0,0.011394]
[1766895552259,0.057,87839.0,87826.0,0.011394]
[1766895552454,0.02402216,87838.0,87826.0,0.011394]
[1766895552654,0.02402216,87837.0,87826.0,0.011394]
[1766895552858,0.02402216,87836.0,87826.0,0.011394]
[1766895553046,0.057,87839.0,87826.0,0.011394]
[1766895553248,0.02402227,87838.0,87826.0,0.011394]
[1766895553542,0.02402227,87837.0,87826.0,0.011394]
[1766895553747,0.02402227,87836.0,87826.0,0.011394]
[1766895553953,0.057,87839.0,87826.0,0.011394]
[1766895554154,0.02402232,87838.0,87826.0,0.011394]
[1766895554443,0.02402232,87837.0,87826.0,0.011394]
[1766895554655,0.02402232,87836.0,87826.0,0.011394]
[1766895554854,0.057,87839.0,87826.0,0.011394]
[1766895555155,0.0240225,87838.0,87826.0,0.011394]
[1766895555351,0.0240225,87837.0,87826.0,0.011394]
[1766895555553,0.0240225,87836.0,87826.0,0.011394]
[1766895555742,0.057,87839.0,87826.0,0.011394]
[1766895555943,0.02402272,87838.0,87826.0,0.011394]
[1766895556152,0.02402272,87837.0,87826.0,0.011394]
[1766895556353,0.02402272,87836.0,87826.0,0.011394]
[1766895556555,0.057,87839.0,87826.0,0.011394]
[1766895556853,0.02402298,87838.0,87826.0,0.011394]
[1766895557048,0.02402298,87837.0,87826.0,0.011394]
[1766895557249,0.02402298,87836.0,87826.0,0.011394]
[1766895557548,0.057,87839.0,87826.0,0.011394]
[1766895557749,0.02402327,87838.0,87826.0,0.011394]
[1766895557951,0.02402327,87837.0,87826.0,0.011394]
[1766895558158,0.02402327,87836.0,87826.0,0.011394]
[1766895558356,0.02402327,87835.0,87826.0,0.011394]
[1766895558558,0.057,87839.0,87826.0,0.011394]
[1766895558758,0.02402361,87838.0,87826.0,0.011394]
[1766895559056,0.02402361,87837.0,87826.0,0.011394]
[1766895559260,0.02402361,87836.0,87826.0,0.011394]
[1766895559556,0.02402361,87835.0,87826.0,0.011394]
[1766895559757,0.057,87839.0,87826.0,0.011394]
[1766895559957,0.02402401,87838.0,87826.0,0.011394]
[1766895560157,0.02402401,87837.0,87826.0,0.011394]
[1766895560358,0.02402401,87836.0,87826.0,0.011394]
[1766895560551,0.02402401,87835.0,87826.0,0.011394]
[1766895560754,0.057,87839.0,87826.0,0.011394]
[1766895561050,0.0240247,87838.0,87826.0,0.011394]
[1766895561249,0.0240247,87837.0,87826.0,0.011394]
[1766895561456,0.0240247,87836.0,87826.0,0.011394]
[1766895561655,0.0240247,87835.0,87826.0,0.011394]
[1766895561855,0.057,87839.0,87826.0,0.011394]
[1766895562056,0.02402554,87838.0,87826.0,0.011394]
[1766895562254,0.02402554,87837.0,87826.0,0.011394]
[1766895562456,0.02402554,87836.0,87824.0,0.057]
[1766895562656,0.02402554,87835.0,87824.0,0.057]
[1766895562858,0.057,87839.0,87824.0,0.057]
[1766895563158,0.0240262,87838.0,87824.0,0.057]
[1766895563361,0.0240262,87837.0,87824.0,0.057]
[1766895563550,0.0240262,87836.0,87824.0,0.057]
[1766895563751,0.0240262,87835.0,87824.0,0.057]
[1766895563947,0.057,87839.0,87824.0,0.057]
[1766895564262,0.02402704,87838.0,87824.0,0.057]
[1766895564562,0.02402704,87837.0,87824.0,0.057]
[1766895564762,0.02402704,87836.0,87824.0,0.057]
[1766895564975,0.02402704,87835.0,87824.0,0.057]
[1766895565162,0.057,87839.0,87824.0,0.057]
[1766895565366,0.02402768,87838.0,87825.0,0.0113942]
[1766895565564,0.02402768,87837.0,87825.0,0.0113942]
[1766895565756,0.02402768,87836.0,87825.0,0.0113942]
[1766895565957,0.02402768,87835.0,87825.0,0.0113942]
[1766895566169,0.057,87839.0,87825.0,0.0113942]
[1766895566465,0.02402802,87838.0,87825.0,0.0113942]
[1766895566665,0.02402802,87837.0,87825.0,0.0113942]
[1766895566866,0.02402802,87836.0,87825.0,0.0113942]
[1766895567163,0.02402802,87835.0,87825.0,0.0113942]
[1766895567370,0.057,87839.0,87825.0,0.0113942]
[1766895567566,0.02402835,87838.0,87825.0,0.0113942]
[1766895567762,0.02402835,87837.0,87825.0,0.0113942]
[1766895567962,0.02402835,87836.0,87825.0,0.0113942]
[1766895568162,0.02402835,87835.0,87825.0,0.0113942]
[1766895568462,0.057,87839.0,87825.0,0.0113942]
[1766895568664,0.02402877,87838.0,87825.0,0.0113942]
[1766895568865,0.02402877,87837.0,87825.0,0.0113942]
[1766895569066,0.02402877,87836.0,87825.0,0.0113942]
[1766895569260,0.02402877,87835.0,87825.0,0.0113942]
[1766895569560,0.057,87839.0,87825.0,0.0113942]
[1766895569760,0.02402936,87838.0,87825.0,0.0113942]
[1766895569964,0.02402936,87837.0,87825.0,0.0113942]
[1766895570163,0.02402936,87836.0,87825.0,0.0113942]
[1766895570355,0.02402936,87835.0,87825.0,0.0113942]
[1766895570560,0.057,87839.0,87825.0,0.0113942]
[1766895570760,0.02412137,87838.0,87825.0,0.0113942]
[1766895570966,0.057,87839.0,87825.0,0.0113942]
[1766895570967,0.02412137,87837.0,87825.0,0.0113942]
[1766895571167,0.02412137,87836.0,87825.0,0.0113942]
[1766895571363,0.02412137,87835.0,87825.0,0.0113942]
[1766895571567,0.02412137,87834.0,87825.0,0.0113942]
[1766895571766,0.02412137,87833.0,87825.0,0.0113942]
[1766895571968,0.057,87839.0,87825.0,0.0113942]
[1766895572168,0.02412151,87838.0,87824.0,0.0683943]
[1766895572364,0.02412151,87837.0,87824.0,0.0683943]
[1766895572561,0.0683925,87839.0,87824.0,0.0683943]
[1766895572562,0.02412151,87836.0,87824.0,0.0683943]
[1766895572762,0.02412151,87835.0,87824.0,0.0683943]
[1766895572964,0.02412151,87834.0,87824.0,0.0683943]
[1766895573164,0.02412151,87833.0,87824.0,0.0683943]
[1766895573362,0.0683925,87839.0,87824.0,0.0683943]
[1766895573562,0.02412192,87838.0,87824.0,0.0683943]
[1766895573873,0.02412192,87837.0,87824.0,0.0683943]
[1766895574073,0.02412192,87836.0,87824.0,0.0683943]
[1766895574373,0.02412192,87835.0,87824.0,0.0683943]
[1766895574573,0.02412192,87834.0,87824.0,0.0683943]
[1766895574774,0.02412192,87833.0,87824.0,0.0683943]
[1766895574975,0.057,87839.0,87824.0,0.0683943]
[1766895575173,0.02412225,87838.0,87824.0,0.0683943]
[1766895575372,0.02412225,87837.0,87824.0,0.0683943]
[1766895575571,0.02412225,87836.0,87824.0,0.0683943]
[1766895575761,0.02412225,87835.0,87824.0,0.0683943]
[1766895575965,0.02412225,87834.0,87824.0,0.0683943]
[1766895576165,0.02412225,87833.0,87824.0,0.0683943]
[1766895576370,0.057,87839.0,87824.0,0.0683943]
[1766895576567,0.0241224,87838.0,87824.0,0.0683943]
[1766895576769,0.0241224,87837.0,87824.0,0.0683943]
[1766895576971,0.0113926,87838.0,87824.0,0.0683943]
[1766895576972,0.0241224,87836.0,87824.0,0.0683943]
[1766895577171,0.0241224,87835.0,87824.0,0.0683943]
[1766895577372,0.0241224,87834.0,87824.0,0.0683943]
[1766895577578,0.0241224,87833.0,87824.0,0.0683943]
[1766895577772,0.057,87839.0,87824.0,0.0683943]
[1766895577973,0.02412243,87838.0,87824.0,0.0683943]
[1766895578173,0.02412243,87837.0,87824.0,0.0683943]
[1766895578373,0.02412243,87836.0,87824.0,0.0683943]
[1766895578673,0.02412243,87835.0,87824.0,0.0683943]
[1766895578875,0.02412243,87834.0,87824.0,0.0683943]
[1766895579069,0.02412243,87833.0,87824.0,0.0683943]
[1766895579269,0.057,87839.0,87824.0,0.0683943]
[1766895579468,0.02412258,87838.0,87824.0,0.0683943]
[1766895579768,0.02412258,87837.0,87824.0,0.0683943]
[1766895579969,0.02412258,87836.0,87824.0,0.0683943]
[1766895580263,0.02412258,87835.0,87824.0,0.0683943]
[1766895580466,0.02412258,87834.0,87824.0,0.0683943]
[1766895580673,0.02412258,87833.0,87824.0,0.0683943]
[1766895580979,0.057,87839.0,87824.0,0.0683943]
[1766895581180,0.02412258,87838.0,87824.0,0.0683943]
[1766895581374,0.02412258,87837.0,87824.0,0.0683943]
[1766895581569,0.02412258,87836.0,87824.0,0.0683943]
[1766895581770,0.02412258,87835.0,87824.0,0.0683943]
[1766895581970,0.057,87839.0,87824.0,0.0683943]
[1766895582169,0.02412258,87838.0,87824.0,0.0683943]
[1766895582371,0.02412258,87837.0,87824.0,0.0683943]
[1766895582572,0.02412258,87836.0,87824.0,0.0683943]
[1766895582866,0.02412258,87835.0,87824.0,0.0683943]
[1766895583070,0.057,87839.0,87824.0,0.0683943]
[1766895583371,0.02412258,87838.0,87824.0,0.0683943]
[1766895583570,0.02412258,87837.0,87824.0,0.0683943]
[1766895583770,0.02412258,87836.0,87824.0,0.0683943]
[1766895583971,0.02412258,87835.0,87824.0,0.0683943]
[1766895584267,0.057,87839.0,87824.0,0.0683943]
[1766895584470,0.02412258,87838.0,87824.0,0.0683943]
[1766895584670,0.02412258,87837.0,87824.0,0.0683943]
[1766895584881,0.02412258,87836.0,87824.0,0.0683943]
[1766895585083,0.02412258,87835.0,87824.0,0.0683943]
[1766895585381,0.057,87839.0,87824.0,0.0683943]
[1766895585579,0.02412258,87838.0,87824.0,0.0683943]
[1766895585780,0.02412258,87837.0,87824.0,0.0683943]
[1766895585973,0.02412258,87836.0,87824.0,0.0683943]
[1766895586173,0.02412258,87835.0,87824.0,0.0683943]
[1766895586473,0.057,87839.0,87824.0,0.0683943]
[1766895586675,0.02412258,87838.0,87824.0,0.0683943]
[1766895586883,0.02412258,87837.0,87824.0,0.0683943]
[1766895587181,0.02412258,87836.0,87824.0,0.0683943]
[1766895587373,0.02412258,87835.0,87824.0,0.0683943]
[1766895587575,0.057,87839.0,87824.0,0.0683943]
[1766895587775,0.02412258,87838.0,87824.0,0.0683943]
[1766895587982,0.02412258,87837.0,87824.0,0.0683943]
[1766895588183,0.02412258,87836.0,87824.0,0.0683943]
[1766895588385,0.02412258,87835.0,87824.0,0.0683943]
[1766895588582,0.057,87839.0,87824.0,0.0683943]
[1766895588784,0.02412258,87838.0,87824.0,0.0683943]
[1766895588988,0.02412258,87837.0,87824.0,0.0683943]
[1766895589285,0.02412258,87836.0,87824.0,0.0683943]
[1766895589486,0.02412258,87835.0,87824.0,0.0683943]
[1766895589781,0.057,87839.0,87824.0,0.0683943]
[1766895589980,0.02412259,87838.0,87824.0,0.0683943]
[1766895590280,0.02412259,87837.0,87824.0,0.0683943]
[1766895590480,0.02412259,87836.0,87824.0,0.0683943]
[1766895590686,0.02412259,87835.0,87824.0,0.0683943]
[1766895590884,0.057,87839.0,87824.0,0.0683943]
[1766895591085,0.02412259,87838.0,87824.0,0.0683943]
[1766895591276,0.02412259,87837.0,87824.0,0.0683943]
[1766895591471,0.02412259,87836.0,87824.0,0.0683943]
[1766895591677,0.02412259,87835.0,87824.0,0.0683943]
[1766895591879,0.057,87839.0,87824.0,0.0683943]
[1766895592173,0.0241226,87838.0,87824.0,0.0683943]
[1766895592473,0.0241226,87837.0,87824.0,0.0683943]
[1766895592675,0.0241226,87836.0,87824.0,0.0683943]
[1766895592891,0.0241226,87835.0,87824.0,0.0683943]
[1766895593188,0.057,87839.0,87824.0,0.0683943]
[1766895593486,0.0241226,87838.0,87824.0,0.0683943]
[1766895593681,0.0241226,87837.0,87824.0,0.0683943]
[1766895593880,0.0241226,87836.0,87824.0,0.0683943]
[1766895594088,0.0241226,87835.0,87824.0,0.0683943]
[1766895594387,0.057,87839.0,87824.0,0.0683943]
[1766895594590,0.02412259,87838.0,87824.0,0.0683943]
[1766895594886,0.02412259,87837.0,87824.0,0.0683943]
[1766895595087,0.02412259,87836.0,87824.0,0.0683943]
[1766895595388,0.02412259,87835.0,87826.0,0.011394]
[1766895595578,0.057,87839.0,87826.0,0.011394]
[1766895595779,0.02412255,87838.0,87826.0,0.011394]
[1766895595979,0.02412255,87837.0,87826.0,0.011394]
[1766895596279,0.02412255,87836.0,87826.0,0.011394]
[1766895596479,0.02412255,87835.0,87826.0,0.011394]
[1766895596688,0.057,87839.0,87826.0,0.011394]
[1766895596884,0.02412251,87838.0,87826.0,0.011394]
[1766895597086,0.02412251,87837.0,87826.0,0.011394]
[1766895597285,0.02412251,87836.0,87826.0,0.011394]
[1766895597488,0.02412251,87835.0,87826.0,0.011394]
[1766895597687,0.057,87839.0,87826.0,0.011394]
[1766895597986,0.02412245,87838.0,87826.0,0.011394]
[1766895598187,0.02412245,87837.0,87826.0,0.011394]
[1766895598392,0.02412245,87836.0,87826.0,0.011394]
[1766895598590,0.02412245,87835.0,87826.0,0.011394]
[1766895598782,0.057,87839.0,87826.0,0.011394]
[1766895598984,0.0241224,87838.0,87826.0,0.011394]
[1766895599192,0.0241224,87837.0,87826.0,0.011394]
[1766895599384,0.0241224,87836.0,87826.0,0.011394]
[1766895599588,0.0241224,87835.0,87826.0,0.011394]
[1766895599893,0.02458877,87834.0,87826.0,0.011394]
[1766895600092,0.057,87839.0,87826.0,0.011394]
[1766895600294,0.02458877,87838.0,87826.0,0.011394]
[1766895600484,0.02458877,87837.0,87826.0,0.011394]
[1766895600685,0.02458877,87836.0,87826.0,0.011394]
[1766895600886,0.02458877,87835.0,87826.0,0.011394]
[1766895601185,0.02458877,87834.0,87826.0,0.011394]
[1766895601383,0.057,87839.0,87826.0,0.011394]
[1766895601582,0.02458874,87838.0,87826.0,0.011394]
[1766895601781,0.02458874,87837.0,87826.0,0.011394]
[1766895601989,0.02458874,87836.0,87826.0,0.011394]
[1766895602190,0.02458874,87835.0,87826.0,0.011394]
[1766895602395,0.02458874,87834.0,87826.0,0.011394]
[1766895602593,0.057,87839.0,87826.0,0.011394]
[1766895602796,0.02458872,87838.0,87826.0,0.011394]
[1766895603095,0.02458872,87837.0,87828.0,0.0113937]
[1766895603293,0.02458872,87836.0,87828.0,0.0113937]
[1766895603598,0.02458872,87835.0,87824.0,0.057]
[1766895603798,0.02458872,87834.0,87824.0,0.057]
[1766895604096,0.057,87839.0,87824.0,0.057]
[1766895604299,0.02458868,87838.0,87824.0,0.057]
[1766895604595,0.02458868,87837.0,87824.0,0.057]
[1766895604799,0.02458868,87836.0,87824.0,0.057]
[1766895604994,0.02458868,87835.0,87824.0,0.057]
[1766895605295,0.02458868,87834.0,87826.0,0.011394]
[1766895605497,0.057,87839.0,87826.0,0.011394]
[1766895605696,0.02458866,87838.0,87826.0,0.011394]
[1766895605996,0.02458866,87837.0,87828.0,0.0113938]
[1766895606199,0.02458866,87836.0,87828.0,0.0113938]
[1766895606389,0.02458866,87835.0,87828.0,0.0113938]
[1766895606687,0.02458866,87834.0,87828.0,0.0113938]
[1766895606889,0.057,87839.0,87828.0,0.0113938]
[1766895607195,0.02458864,87838.0,87828.0,0.0113938]
[1766895607398,0.02458864,87837.0,87828.0,0.0113938]
[1766895607585,0.02458864,87836.0,87828.0,0.0113938]
[1766895607789,0.02458864,87835.0,87828.0,0.0113938]
[1766895607985,0.02458864,87834.0,87828.0,0.0113938]
[1766895608185,0.057,87839.0,87828.0,0.0113938]
[1766895608395,0.02458861,87838.0,87828.0,0.0113938]
[1766895608594,0.02458861,87837.0,87828.0,0.0113938]
[1766895608797,0.02458861,87836.0,87828.0,0.0113938]
[1766895608993,0.02458861,87835.0,87828.0,0.0113938]
[1766895609195,0.02458861,87834.0,87828.0,0.0113938]
[1766895609391,0.057,87839.0,87828.0,0.0113938]
[1766895609592,0.0245886,87838.0,87828.0,0.0113938]
[1766895609791,0.0245886,87837.0,87828.0,0.0113938]
[1766895609991,0.0245886,87836.0,87828.0,0.0113938]
[1766895610198,0.0245886,87835.0,87828.0,0.0113938]
[1766895610398,0.0245886,87834.0,87828.0,0.0113938]
[1766895610600,0.057,87839.0,87828.0,0.0113938]
[1766895610799,0.0245886,87838.0,87828.0,0.0113938]
[1766895610990,0.0245886,87837.0,87828.0,0.0113938]
[1766895611289,0.0245886,87836.0,87828.0,0.0113938]
[1766895611486,0.0245886,87835.0,87828.0,0.0113938]
[1766895611686,0.0245886,87834.0,87828.0,0.0113938]
[1766895611988,0.057,87839.0,87828.0,0.0113938]
[1766895612186,0.0245886,87838.0,87828.0,0.0113938]
[1766895612394,0.0245886,87837.0,87828.0,0.0113938]
[1766895612595,0.0245886,87836.0,87828.0,0.0113938]
[1766895612799,0.0245886,87835.0,87828.0,0.0113938]
[1766895612999,0.057,87839.0,87828.0,0.0113938]
[1766895613000,0.0245886,87834.0,87828.0,0.0113938]
[1766895613199,0.057,87839.0,87825.0,0.0113941]
[1766895613400,0.0245886,87838.0,87825.0,0.0113941]
[1766895613601,0.0245886,87837.0,87825.0,0.0113941]
[1766895613802,0.0245886,87836.0,87825.0,0.0113941]
[1766895614002,0.0245886,87835.0,87825.0,0.0113941]
[1766895614303,0.0245886,87834.0,87825.0,0.0113941]
[1766895614496,0.057,87839.0,87825.0,0.0113941]
[1766895614697,0.02458861,87838.0,87825.0,0.0113941]
[1766895614894,0.02458861,87837.0,87825.0,0.0113941]
[1766895615095,0.02458861,87836.0,87825.0,0.0113941]
[1766895615288,0.02458861,87835.0,87825.0,0.0113941]
[1766895615493,0.02458861,87834.0,87825.0,0.0113941]
[1766895615695,0.057,87839.0,87825.0,0.0113941]
[1766895615894,0.02458862,87838.0,87825.0,0.0113941]
[1766895616094,0.02458862,87837.0,87825.0,0.0113941]
[1766895616395,0.02458862,87836.0,87825.0,0.0113941]
[1766895616594,0.02458862,87835.0,87825.0,0.0113941]
[1766895616795,0.02458862,87834.0,87825.0,0.0113941]
[1766895616995,0.057,87839.0,87825.0,0.0113941]
[1766895617195,0.02458864,87838.0,87825.0,0.0113941]
[1766895617490,0.02458864,87837.0,87824.0,0.057]
[1766895617695,0.02458864,87836.0,87824.0,0.057]
[1766895617904,0.02458864,87835.0,87824.0,0.057]
[1766895618104,0.02458864,87834.0,87824.0,0.057]
[1766895618295,0.057,87839.0,87824.0,0.057]
[1766895618495,0.02458867,87838.0,87824.0,0.0683943]
[1766895618794,0.02458867,87837.0,87824.0,0.0683943]
[1766895618995,0.02458867,87836.0,87824.0,0.0683943]
[1766895619195,0.02458867,87835.0,87824.0,0.0683943]
[1766895619395,0.02458867,87834.0,87824.0,0.0683943]
[1766895619596,0.057,87839.0,87824.0,0.0683943]
[1766895619796,0.02458869,87838.0,87824.0,0.0683943]
[1766895620003,0.01434674,87837.0,87828.0,0.11422558]
[1766895620207,0.057,87839.0,87828.0,0.12561928]
[1766895623009,0.057,87839.0,87828.0,0.11422558]
[1766895623599,0.057,87839.0,87828.0,0.12561928]
[1766895628812,0.09701072,87843.0,87828.0,0.12561928]
[1766895628813,0.15401072,87843.0,87828.0,0.12561928]
[1766895629513,0.15401072,87843.0,87830.0,0.0113935]
[1766895629814,0.15401072,87843.0,87830.0,0.0683935]
[1766895632008,0.02431411,87842.0,87830.0,0.0683935]
[1766895632209,0.02431411,87841.0,87832.0,0.0113932]
[1766895632408,0.02431411,87840.0,87832.0,0.0113932]
[1766895632715,0.02431411,87839.0,87832.0,0.0113932]
[1766895633014,0.02431411,87838.0,87832.0,0.0113932]
[1766895633216,0.02431411,87837.0,87832.0,0.0113932]
[1766895633415,0.15401072,87843.0,87832.0,0.0113932]
[1766895633713,0.0243138,87842.0,87832.0,0.0113932]
[1766895633906,0.0243138,87841.0,87832.0,0.0113932]
[1766895634109,0.0243138,87840.0,87832.0,0.0113932]
[1766895634308,0.0243138,87839.0,87832.0,0.0113932]
[1766895634509,0.0243138,87838.0,87832.0,0.0113932]
[1766895634708,0.0243138,87837.0,87832.0,0.0113932]
[1766895634913,0.15401072,87843.0,87832.0,0.0113932]
[1766895635211,0.02431372,87842.0,87832.0,0.0113932]
[1766895635412,0.02431372,87841.0,87832.0,0.0113932]
[1766895635611,0.02431372,87840.0,87832.0,0.0113932]
[1766895635812,0.02431372,87839.0,87832.0,0.0113932]
[1766895636113,0.02431372,87838.0,87832.0,0.0113932]
[1766895636306,0.02431372,87837.0,87832.0,0.0113932]
[1766895636502,0.15401072,87843.0,87832.0,0.0113932]
[1766895636704,0.02431368,87842.0,87832.0,0.0113932]
[1766895636919,0.02431368,87841.0,87832.0,0.0113932]
[1766895637119,0.02431368,87840.0,87832.0,0.0113932]
[1766895637311,0.02431368,87839.0,87832.0,0.0113932]
[1766895637610,0.02431368,87838.0,87832.0,0.0113932]
[1766895637812,0.02431368,87837.0,87832.0,0.0113932]
[1766895638010,0.05717072,87843.0,87832.0,0.0113932]
[1766895638212,0.02431372,87842.0,87832.0,0.0113932]
[1766895638413,0.05717072,87843.0,87832.0,0.0113932]
[1766895638414,0.02431372,87841.0,87832.0,0.0113932]
[1766895638711,0.02431372,87840.0,87832.0,0.0113932]
[1766895638911,0.02431372,87839.0,87832.0,0.0113932]
[1766895639118,0.02431372,87838.0,87832.0,0.0113932]
[1766895639419,0.02431372,87837.0,87832.0,0.0113932]
[1766895639617,0.05717072,87843.0,87832.0,0.0113932]
[1766895639812,0.02431393,87842.0,87832.0,0.0113932]
[1766895640025,0.02431393,87841.0,87832.0,0.0113932]
[1766895640312,0.02431393,87840.0,87832.0,0.0113932]
[1766895640511,0.02431393,87839.0,87832.0,0.0113932]
[1766895640714,0.02431393,87838.0,87832.0,0.0113932]
[1766895641012,0.02431393,87837.0,87832.0,0.0113932]
[1766895641213,0.05717072,87843.0,87832.0,0.0113932]
[1766895641420,0.02431433,87842.0,87832.0,0.0113932]
[1766895641720,0.02431433,87841.0,87832.0,0.0113932]
[1766895641918,0.02431433,87840.0,87832.0,0.0113932]
[1766895642219,0.02431433,87839.0,87832.0,0.0113932]
[1766895642418,0.02431433,87838.0,87832.0,0.0113932]
[1766895642616,0.02431433,87837.0,87832.0,0.0113932]
[1766895642811,0.05717072,87843.0,87832.0,0.0113932]
[1766895643006,0.02431461,87842.0,87832.0,0.0113932]
[1766895643210,0.02431461,87841.0,87832.0,0.0113932]
[1766895643411,0.02431461,87840.0,87832.0,0.0113932]
[1766895643619,0.02431461,87839.0,87830.0,0.17122558]
[1766895643811,0.02431461,87838.0,87830.0,0.17122558]
[1766895644013,0.02431461,87837.0,87830.0,0.17122558]
[1766895644213,0.05717072,87843.0,87830.0,0.18261908]
[1766895644416,0.02431536,87842.0,87830.0,0.18261908]
[1766895644623,0.02431536,87841.0,87830.0,0.18261908]
[1766895644921,0.02431536,87840.0,87830.0,0.18261908]
[1766895645123,0.02431536,87839.0,87830.0,0.18261908]
[1766895645319,0.02431536,87838.0,87830.0,0.18261908]
[1766895645513,0.02431536,87837.0,87830.0,0.18261908]
[1766895645714,0.05717072,87843.0,87830.0,0.18261908]
[1766895646014,0.02431586,87842.0,87830.0,0.18261908]
[1766895646215,0.02431586,87841.0,87830.0,0.18261908]
[1766895646515,0.02431586,87840.0,87830.0,0.18261908]
[1766895646716,0.02431586,87839.0,87830.0,0.18261908]
[1766895647013,0.02431586,87838.0,87830.0,0.18261908]
[1766895647215,0.02431586,87837.0,87830.0,0.18261908]
[1766895647416,0.05717072,87843.0,87830.0,0.18261908]
[1766895647623,0.02431721,87842.0,87830.0,0.18261908]
[1766895647813,0.02431721,87841.0,87830.0,0.18261908]
[1766895648012,0.02431721,87840.0,87830.0,0.18261908]
[1766895648213,0.02431721,87839.0,87830.0,0.18261908]
[1766895648413,0.02431721,87838.0,87830.0,0.18261908]
[1766895648614,0.02431721,87837.0,87830.0,0.18261908]
[1766895648814,0.05717072,87843.0,87830.0,0.17122558]
[1766895649014,0.02431817,87842.0,87830.0,0.17122558]
[1766895649214,0.02431817,87841.0,87830.0,0.17122558]
[1766895649425,0.02431817,87840.0,87830.0,0.17122558]
[1766895649623,0.02431817,87839.0,87830.0,0.17122558]
[1766895649823,0.02431817,87838.0,87830.0,0.17122558]
[1766895650025,0.02431817,87837.0,87830.0,0.17122558]
[1766895650219,0.05717072,87843.0,87830.0,0.17122558]
[1766895650419,0.02432015,87842.0,87830.0,0.17122558]
[1766895650620,0.02432015,87841.0,87830.0,0.17122558]
[1766895650811,0.02432015,87840.0,87830.0,0.17122558]
[1766895651014,0.02432015,87839.0,87830.0,0.17122558]
[1766895651224,0.02432015,87838.0,87830.0,0.17122558]
[1766895651426,0.02432015,87837.0,87830.0,0.17122558]
[1766895651626,0.05717072,87843.0,87830.0,0.057]
[1766895651820,0.02432079,87842.0,87830.0,0.057]
[1766895652022,0.02432079,87841.0,87830.0,0.057]
[1766895652324,0.02432079,87840.0,87830.0,0.057]
[1766895652527,0.02432079,87839.0,87830.0,0.057]
[1766895652825,0.02432079,87838.0,87830.0,0.057]
[1766895653010,0.02432079,87837.0,87830.0,0.057]
[1766895653211,0.05717072,87843.0,87830.0,0.057]
[1766895653423,0.02432221,87842.0,87830.0,0.057]
[1766895653624,0.02432221,87841.0,87830.0,0.057]
[1766895653824,0.02432221,87840.0,87830.0,0.057]
[1766895654024,0.02432221,87839.0,87830.0,0.057]
[1766895654325,0.02432221,87838.0,87830.0,0.057]
[1766895654626,0.02432221,87837.0,87830.0,0.057]
[1766895654823,0.05717072,87843.0,87830.0,0.057]
[1766895655134,0.02432223,87842.0,87830.0,0.057]
[1766895655425,0.02432223,87841.0,87830.0,0.057]
[1766895655615,0.02432223,87840.0,87830.0,0.057]
[1766895655816,0.02432223,87839.0,87830.0,0.057]
[1766895656016,0.02432223,87838.0,87830.0,0.057]
[1766895656222,0.02432223,87837.0,87830.0,0.057]
[1766895656422,0.05717072,87843.0,87830.0,0.057]
[1766895656624,0.02432224,87842.0,87830.0,0.057]
[1766895656925,0.02432224,87841.0,87830.0,0.17122558]
[1766895657125,0.02432224,87840.0,87830.0,0.17122558]
[1766895657424,0.02432224,87839.0,87830.0,0.17122558]
[1766895657622,0.02432224,87838.0,87830.0,0.17122558]